[Event "HUN-ch U8-U18 2019"]
[Site "Balatonlelle"]
[Date "2019.06.24"]
[Round "4.8"]
[White "Pasti, Aron"]
[Black "Pater, Peter"]
[Result "1/2-1/2"]
[ECO "A55"]
[WhiteElo "2193"]
[BlackElo "1901"]
[Annotator "NA"]
[PlyCount "47"]
[EventDate "2019.06.21"]
[EventType "swiss"]
[EventCountry "HUN"]
[SourceTitle "playchess.com"]
[Source "ChessBase"]
[SourceQuality "1"]
[TimeControl "40/5400+30:1800+30"]

1. c4 {[%emt 0:00:02]} Nf6 {[%emt 0:01:05]} 2. Nc3 {[%emt 0:00:20]} d6 {[%emt 0:01:05]} 3. d4 {[%emt 0:00:20]} e5 {[%emt 0:02:02]} 4. Nf3 {[%emt 0:00:11]} Nbd7 {[%emt 0:00:04]} 5. e4 {[%emt 0:00:06]} g6 {[%emt 0:00:14]} 6. Be2 {[%emt 0:00:45]} Bg7 {[%emt 0:00:05]} 7. Be3 {[%emt 0:00:04]} O-O {[%emt 0:00:46]} 8. d5 {[%emt 0:00:03]} Nc5 9. Nd2 {[%emt 0:00:07]} a5 {[%emt 0:00:13]} 10. g4 {[%emt 0:01:13]} Ne8 {[%emt 0:06:53]} 11. h4 {[%emt 0:14:46]} f5 {[%emt 0:19:35]} 12. h5 {[%emt 0:03:22]} f4 {[%emt 0:09:41]} 13. Bxc5 {[%emt 0:00:04]} dxc5 {[%emt 0:00:05]} 14. hxg6 {[%emt 0:03:47]} hxg6 {[%emt 0:00:48]} 15. f3 {[%emt 0:02:49]} Bf6 {[%emt 0:18:12]} 16. Kf2 {[%emt 0:04:41]} Bh4+ {[%emt 0:03:03]} 17. Kg2 {[%emt 0:00:53]} Nd6 {[%emt 0:11:19]} 18. Qg1 {[%emt 0:01:44]} b6 {[%emt 0:00:53]} 19. Qh2 {[%emt 0:00:17]} g5 {[%emt 0:00:47]} 20. Qg1 {[%emt 0:12:13]} Bd7 {[%emt 0:00:44]} 21. a4 {[%emt 0:01:12]} Kg7 {[%emt 0:05:36]} 22. Nf1 {[%emt 0:01:49]} Rh8 {[%emt 0:02:28]} 23. b3 {[%emt 0:11:15]} Rh6 {[%emt 0:02:33]} 24. Nd2 {[%emt 0:05:28]} 1/2-1/2

[Event "HUN-ch U8-U18 2019"]
[Site "Balatonlelle"]
[Date "2019.06.24"]
[Round "4.8"]
[White "Papp, Bence"]
[Black "Fodor, Kornel"]
[Result "1-0"]
[ECO "B47"]
[WhiteElo "2094"]
[BlackElo "1926"]
[Annotator "NA"]
[PlyCount "85"]
[EventDate "2019.06.21"]
[EventType "swiss"]
[EventCountry "HUN"]
[SourceTitle "playchess.com"]
[Source "ChessBase"]
[SourceQuality "1"]
[TimeControl "40/5400+30:1800+30"]

1. e4 {[%emt 0:00:02]} c5 {[%emt 0:00:05]} 2. Nf3 {[%emt 0:00:04]} e6 {[%emt 0:00:10]} 3. d4 {[%emt 0:00:05]} cxd4 {[%emt 0:00:07]} 4. Nxd4 {[%emt 0:00:05]} Nc6 {[%emt 0:00:10]} 5. Nc3 {[%emt 0:00:07]} Qc7 {[%emt 0:00:10]} 6. Ndb5 {[%emt 0:00:55]} Qb8 {[%emt 0:00:08]} 7. Be3 {[%emt 0:00:04]} a6 {[%emt 0:00:21]} 8. Bb6 {[%emt 0:00:12]} axb5 {[%emt 0:00:30]} 9. Nxb5 {[%emt 0:00:07]} Bb4+ {[%emt 0:00:15]} 10. c3 {[%emt 0:00:06]} Ba5 {[%emt 0:00:08]} 11. Nc7+ {[%emt 0:00:08]} Qxc7 {[%emt 0:00:09]} 12. Bxc7 {[%emt 0:00:07]} Bxc7 {[%emt 0:00:05]} 13. Qg4 {[%emt 0:00:13]} g6 {[%emt 0:00:30]} 14. Bb5 {[%emt 0:00:37]} Kf8 {[%emt 0:07:20]} 15. O-O {[%emt 0:00:40]} Kg7 {[%emt 0:00:53]} 16. a4 {[%emt 0:02:44]} Nf6 {[%emt 0:07:36]} 17. Qe2 {[%emt 0:02:18]} d5 {[%emt 0:07:04]} 18. exd5 {[%emt 0:01:56]} Nxd5 {[%emt 0:01:05]} 19. Rfd1 {[%emt 0:01:32]} Ne5 {[%emt 0:10:33]} 20. Qe4 {[%emt 0:03:07]} Nf6 {[%emt 0:09:26]} 21. Qb4 {[%emt 0:04:56]} b6 {[%emt 0:19:57]} 22. Re1 {[%emt 0:10:38]} Bb7 {[%emt 0:08:59]} 23. f4 {[%emt 0:13:34]} Neg4 {[%emt 0:03:52]} 24. Rxe6 {[%emt 0:10:28]} fxe6 {[%emt 0:01:52]} 25. Qe7+ {[%emt 0:00:18]} Kh6 {[%emt 0:00:45]} 26. Qxc7 {[%emt 0:01:01]} Ba6 {[%emt 0:04:09]} 27. Bxa6 {[%emt 0:01:00]} Rxa6 {[%emt 0:00:05]} 28. h3 {[%emt 0:00:29]} Nd5 {[%emt 0:04:15]} 29. Qb7 {[%emt 0:01:10]} Rha8 {[%emt 0:00:21]} 30. hxg4 {[%emt 0:00:17]} Nxf4 {[%emt 0:01:37]} 31. Qe4 {[%emt 0:00:51]} g5 {[%emt 0:01:10]} 32. Kf2 {[%emt 0:01:17]} Kg7 {[%emt 0:00:52]} 33. Qb7+ {[%emt 0:01:24]} Kg6 {[%emt 0:01:54]} 34. Rh1 {[%emt 0:01:08]} h6 {[%emt 0:00:09]} 35. Qe4+ {[%emt 0:00:40]} Kg7 {[%emt 0:00:12]} 36. g3 {[%emt 0:00:37]} Ng6 {[%emt 0:00:35]} 37. Qxe6 {[%emt 0:00:22]} R8a7 {[%emt 0:00:57]} 38. Rd1 {[%emt 0:01:02]} Nf8 {[%emt 0:06:51]} 39. Qe5+ {[%emt 0:00:41]} Kh7 {[%emt 0:00:18]} 40. Qf6 {[%emt 0:00:00]} Kg8 {[%emt 0:00:00]} 41. Qxh6 {[%emt 0:02:13]} Ra5 {[%emt 0:03:58]} 42. Kg2 {[%emt 0:01:10]} Rh7 {[%emt 0:00:30]} 43. Qxb6 {[%emt 0:00:17]} 1-0

[Event "HUN-ch U8-U18 2019"]
[Site "Balatonlelle"]
[Date "2019.06.24"]
[Round "4.9"]
[White "Fule, Simon"]
[Black "Kozsik, Bende Barnabas"]
[Result "1-0"]
[ECO "B41"]
[WhiteElo "2148"]
[BlackElo "2089"]
[Annotator "NA"]
[PlyCount "87"]
[EventDate "2019.06.21"]
[EventType "swiss"]
[EventCountry "HUN"]
[SourceTitle "playchess.com"]
[Source "ChessBase"]
[SourceQuality "1"]
[TimeControl "40/5400+30:1800+30"]

1. e4 {[%emt 0:00:03]} c5 {[%emt 0:00:17]} 2. Nf3 {[%emt 0:00:24]} e6 {[%emt 0:00:08]} 3. d4 {[%emt 0:00:08]} cxd4 {[%emt 0:00:07]} 4. Nxd4 {[%emt 0:00:06]} a6 5. c4 {[%emt 0:00:38]} Nf6 {[%emt 0:00:41]} 6. Nc3 {[%emt 0:00:13]} Bb4 {[%emt 0:00:33]} 7. Qf3 {[%emt 0:00:27]} d6 {[%emt 0:00:56]} 8. Nc2 {[%emt 0:08:04]} Bc5 {[%emt 0:03:53]} 9. b4 {[%emt 0:02:37]} Ba7 {[%emt 0:00:42]} 10. Be3 {[%emt 0:04:01]} Bxe3 {[%emt 0:06:06]} 11. Qxe3 {[%emt 0:00:20]} O-O {[%emt 0:02:22]} 12. Be2 {[%emt 0:01:13]} Qc7 {[%emt 0:04:14]} 13. O-O {[%emt 0:03:53]} Rd8 {[%emt 0:05:52]} 14. Rfd1 {[%emt 0:02:30]} Bd7 {[%emt 0:09:12]} 15. Qd4 {[%emt 0:11:37]} Be8 {[%emt 0:02:53]} 16. b5 {[%emt 0:09:09]} axb5 {[%emt 0:03:17]} 17. cxb5 {[%emt 0:02:01]} Rc8 {[%emt 0:08:38]} 18. Rd3 {[%emt 0:01:05]} Nbd7 {[%emt 0:02:08]} 19. Rad1 {[%emt 0:04:11]} Qc5 {[%emt 0:07:13]} 20. Rg3 {[%emt 0:11:37]} b6 {[%emt 0:15:25]} 21. Nb4 {[%emt 0:07:30]} Qxd4 {[%emt 0:03:41]} 22. Rxd4 {[%emt 0:00:09]} Nc5 {[%emt 0:00:38]} 23. h4 {[%emt 0:10:14]} Kf8 {[%emt 0:03:49]} 24. Na6 {[%emt 0:03:37]} g6 {[%emt 0:06:45]} 25. Nxc5 {[%emt 0:03:03]} Rxc5 {[%emt 0:00:30]} 26. Rxd6 {[%emt 0:00:32]} Rxc3 {[%emt 0:01:35]} 27. Rxc3 {[%emt 0:00:06]} Nxe4 {[%emt 0:00:04]} 28. Bf3 {[%emt 0:00:29]} Nxd6 {[%emt 0:00:45]} 29. Bxa8 {[%emt 0:00:07]} Nxb5 {[%emt 0:00:06]} 30. Rc8 {[%emt 0:01:34]} Nd6 {[%emt 0:00:31]} 31. Rb8 {[%emt 0:00:16]} Ke7 {[%emt 0:00:27]} 32. Rxb6 {[%emt 0:00:35]} Ba4 {[%emt 0:00:53]} 33. Bc6 {[%emt 0:01:44]} Bxc6 {[%emt 0:00:45]} 34. Rxc6 {[%emt 0:00:06]} Kd7 {[%emt 0:00:50]} 35. Rc1 {[%emt 0:00:20]} h6 {[%emt 0:00:40]} 36. Kf1 {[%emt 0:00:40]} g5 {[%emt 0:00:58]} 37. hxg5 {[%emt 0:00:19]} hxg5 {[%emt 0:00:07]} 38. Ke2 {[%emt 0:00:31]} Nf5 {[%emt 0:01:31]} 39. a4 {[%emt 0:01:16]} Nh4 {[%emt 0:01:24]} 40. a5 {[%emt 0:00:00]} Nf5 {[%emt 0:00:00]} 41. a6 {[%emt 0:05:38]} Nd4+ {[%emt 0:01:12]} 42. Ke3 {[%emt 0:00:10]} Nc6 {[%emt 0:00:16]} 43. Ra1 {[%emt 0:01:05]} Na7 {[%emt 0:00:17]} 44. Rb1 {[%emt 0:00:12]} 1-0

[Event "HUN-ch U8-U18 2019"]
[Site "Balatonlelle"]
[Date "2019.06.24"]
[Round "4.9"]
[White "Follardt, Lorinc"]
[Black "Geher, Koppany"]
[Result "0-1"]
[ECO "A02"]
[WhiteElo "1913"]
[BlackElo "2089"]
[Annotator "NA"]
[PlyCount "44"]
[EventDate "2019.06.21"]
[EventType "swiss"]
[EventCountry "HUN"]
[SourceTitle "playchess.com"]
[Source "ChessBase"]
[SourceQuality "1"]
[TimeControl "40/5400+30:1800+30"]

1. f4 {[%emt 0:00:03]} Nh6 {[%emt 0:06:03]} 2. b3 {[%emt 0:03:14]} d5 {[%emt 0:03:36]} 3. Bb2 {[%emt 0:00:40]} Nf5 {[%emt 0:06:53]} 4. e3 {[%emt 0:12:35]} e6 {[%emt 0:21:09]} 5. Nf3 {[%emt 0:01:49]} Be7 {[%emt 0:02:18]} 6. Be2 {[%emt 0:14:20]} Bf6 {[%emt 0:03:45]} 7. Bxf6 {[%emt 0:08:18]} Qxf6 {[%emt 0:00:09]} 8. Nc3 {[%emt 0:00:19]} Nxe3 {[%emt 0:02:37]} 9. dxe3 {[%emt 0:01:12]} Qxc3+ {[%emt 0:00:19]} 10. Kf2 {[%emt 0:00:03]} O-O {[%emt 0:01:28]} 11. Bd3 {[%emt 0:07:47]} Nd7 {[%emt 0:01:44]} 12. g4 {[%emt 0:09:14]} e5 {[%emt 0:04:37]} 13. Bf5 {[%emt 0:06:14]} exf4 {[%emt 0:10:28]} 14. exf4 {[%emt 0:04:02]} Nf6 {[%emt 0:03:10]} 15. Bxc8 {[%emt 0:06:37]} Raxc8 {[%emt 0:00:16]} 16. h3 {[%emt 0:01:00]} Ne4+ {[%emt 0:00:39]} 17. Kg2 {[%emt 0:00:13]} Qe3 {[%emt 0:02:03]} 18. Qe1 {[%emt 0:03:25]} Qxf4 {[%emt 0:00:44]} 19. Rf1 {[%emt 0:01:22]} Rce8 {[%emt 0:05:14]} 20. Nd4 {[%emt 0:04:18]} Qd2+ {[%emt 0:05:07]} 21. Qxd2 {[%emt 0:00:36]} Nxd2 {[%emt 0:00:02]} 22. Rad1 {[%emt 0:00:42]} Nxf1 {[%emt 0:00:10]} 0-1

[Event "HUN-ch U8-U18 2019"]
[Site "Balatonlelle"]
[Date "2019.06.24"]
[Round "4.10"]
[White "Erseki, Aron"]
[Black "Palczert, Botond"]
[Result "1/2-1/2"]
[ECO "B90"]
[WhiteElo "1854"]
[BlackElo "2068"]
[Annotator "NA"]
[PlyCount "52"]
[EventDate "2019.06.21"]
[EventType "swiss"]
[EventCountry "HUN"]
[SourceTitle "playchess.com"]
[Source "ChessBase"]
[SourceQuality "1"]
[TimeControl "40/5400+30:1800+30"]

1. e4 {[%emt 0:00:11]} c5 {[%emt 0:00:04]} 2. Nf3 {[%emt 0:00:06]} d6 {[%emt 0:00:06]} 3. d4 {[%emt 0:00:13]} cxd4 {[%emt 0:00:07]} 4. Nxd4 {[%emt 0:00:05]} Nf6 {[%emt 0:00:11]} 5. Nc3 {[%emt 0:00:09]} a6 {[%emt 0:00:10]} 6. Be3 {[%emt 0:00:18]} e5 {[%emt 0:00:19]} 7. Nb3 {[%emt 0:00:30]} Be6 {[%emt 0:00:29]} 8. Bg5 {[%emt 0:07:13]} Be7 {[%emt 0:02:31]} 9. Be2 {[%emt 0:03:31]} Nbd7 {[%emt 0:01:30]} 10. Qd2 {[%emt 0:03:11]} Rc8 {[%emt 0:03:13]} 11. f3 {[%emt 0:14:28]} h5 {[%emt 0:00:06]} 12. O-O-O {[%emt 0:03:58]} b5 {[%emt 0:00:17]} 13. Kb1 {[%emt 0:05:03]} Qc7 {[%emt 0:07:28]} 14. a3 {[%emt 0:16:54]} Qb8 {[%emt 0:14:29]} 15. Nd5 {[%emt 0:09:55]} Nxd5 {[%emt 0:03:06]} 16. exd5 {[%emt 0:01:31]} Bf5 {[%emt 0:01:00]} 17. Rc1 {[%emt 0:01:06]} f6 {[%emt 0:20:00]} 18. Be3 {[%emt 0:01:13]} Nb6 {[%emt 0:06:16]} 19. Bxb6 {[%emt 0:04:17]} Qxb6 {[%emt 0:01:51]} 20. Bd3 {[%emt 0:00:26]} Bxd3 {[%emt 0:02:17]} 21. Qxd3 {[%emt 0:00:34]} a5 {[%emt 0:01:41]} 22. Qg6+ {[%emt 0:01:22]} Kd7 {[%emt 0:00:40]} 23. Qf5+ {[%emt 0:04:52]} Kd8 {[%emt 0:00:04]} 24. c3 {[%emt 0:02:14]} a4 {[%emt 0:03:30]} 25. Na1 {[%emt 0:00:44]} Qb7 {[%emt 0:00:31]} 26. Rhd1 {[%emt 0:01:06]} Qd7 {[%emt 0:01:41]} 1/2-1/2

[Event "HUN-ch U8-U18 2019"]
[Site "Balatonlelle"]
[Date "2019.06.24"]
[Round "4.10"]
[White "Bacsi, Kristof"]
[Black "Juhasz, Agoston"]
[Result "0-1"]
[ECO "D94"]
[WhiteElo "1695"]
[BlackElo "2161"]
[Annotator "NA"]
[PlyCount "45"]
[EventDate "2019.06.21"]
[EventType "swiss"]
[EventCountry "HUN"]
[SourceTitle "playchess.com"]
[Source "ChessBase"]
[SourceQuality "1"]
[TimeControl "40/5400+30:1800+30"]

1. d4 {[%emt 0:00:01]} Nf6 {[%emt 0:00:10]} 2. Nf3 {[%emt 0:00:06]} g6 {[%emt 0:00:13]} 3. c4 {[%emt 0:00:09]} Bg7 {[%emt 0:00:12]} 4. Nc3 {[%emt 0:00:09]} d5 {[%emt 0:00:11]} 5. e3 {[%emt 0:00:47]} O-O {[%emt 0:00:19]} 6. Bd3 {[%emt 0:00:07]} c5 {[%emt 0:00:58]} 7. O-O {[%emt 0:00:35]} cxd4 {[%emt 0:00:54]} 8. Nxd4 {[%emt 0:00:29]} dxc4 {[%emt 0:00:48]} 9. Bxc4 {[%emt 0:00:10]} a6 {[%emt 0:00:11]} 10. a4 {[%emt 0:01:17]} Qc7 {[%emt 0:00:31]} 11. Be2 {[%emt 0:06:02]} e5 {[%emt 0:02:27]} 12. Nf3 {[%emt 0:01:20]} Rd8 {[%emt 0:00:42]} 13. Qc2 {[%emt 0:02:59]} Bf5 {[%emt 0:02:43]} 14. Qb3 {[%emt 0:00:22]} Nc6 {[%emt 0:07:09]} 15. Bd2 {[%emt 0:12:55]} e4 {[%emt 0:06:48]} 16. Nd4 {[%emt 0:01:19]} Nxd4 {[%emt 0:01:45]} 17. exd4 {[%emt 0:00:08]} Rxd4 {[%emt 0:05:52]} 18. Be3 {[%emt 0:00:00]} Rd7 {[%emt 0:00:56]} 19. h3 {[%emt 0:07:36]} Be6 {[%emt 0:01:44]} 20. Qc2 {[%emt 0:09:25]} Nd5 {[%emt 0:02:55]} 21. Qxe4 {[%emt 0:02:05]} Bxc3 {[%emt 0:01:46]} 22. Rac1 {[%emt 0:07:57]} Qe5 {[%emt 0:01:40]} 23. Qd4 0-1

[Event "HUN-ch U8-U18 2019"]
[Site "Balatonlelle"]
[Date "2019.06.24"]
[Round "4.11"]
[White "Virag, Balint"]
[Black "Kratzmajer, Akos Gyorgy"]
[Result "1-0"]
[ECO "B33"]
[WhiteElo "2173"]
[BlackElo "2048"]
[Annotator "NA"]
[PlyCount "59"]
[EventDate "2019.06.21"]
[EventType "swiss"]
[EventCountry "HUN"]
[SourceTitle "playchess.com"]
[Source "ChessBase"]
[SourceQuality "1"]
[TimeControl "40/5400+30:1800+30"]

1. e4 {[%emt 0:00:11]} c5 {[%emt 0:00:08]} 2. Nf3 {[%emt 0:00:11]} Nc6 {[%emt 0:00:04]} 3. d4 {[%emt 0:00:07]} cxd4 {[%emt 0:00:01]} 4. Nxd4 {[%emt 0:00:11]} Nf6 {[%emt 0:00:03]} 5. Nc3 {[%emt 0:00:09]} e5 {[%emt 0:00:03]} 6. Ndb5 {[%emt 0:00:18]} d6 {[%emt 0:00:04]} 7. Bg5 {[%emt 0:00:10]} a6 {[%emt 0:00:02]} 8. Na3 {[%emt 0:00:09]} b5 {[%emt 0:00:04]} 9. Nd5 {[%emt 0:00:10]} Be7 {[%emt 0:00:03]} 10. Bxf6 {[%emt 0:00:13]} Bxf6 {[%emt 0:00:02]} 11. c3 {[%emt 0:00:16]} O-O {[%emt 0:00:07]} 12. Nc2 {[%emt 0:00:39]} Bg5 {[%emt 0:00:03]} 13. a4 {[%emt 0:12:33]} bxa4 {[%emt 0:05:30]} 14. Rxa4 {[%emt 0:03:17]} a5 {[%emt 0:00:10]} 15. b4 {[%emt 0:02:04]} Be6 {[%emt 0:05:27]} 16. Bc4 {[%emt 0:12:30]} Kh8 {[%emt 0:07:43]} 17. b5 {[%emt 0:04:05]} Ne7 {[%emt 0:00:16]} 18. O-O {[%emt 0:03:04]} Rc8 {[%emt 0:13:04]} 19. Nce3 {[%emt 0:08:01]} Nxd5 {[%emt 0:25:02]} 20. Nxd5 {[%emt 0:00:53]} Rc5 {[%emt 0:01:36]} 21. Qd3 {[%emt 0:05:26]} Qc8 {[%emt 0:10:17]} 22. Nb6 {[%emt 0:02:34]} Qc7 {[%emt 0:02:29]} 23. Bxe6 {[%emt 0:02:29]} fxe6 {[%emt 0:03:05]} 24. Nc4 {[%emt 0:00:51]} d5 {[%emt 0:01:48]} 25. exd5 {[%emt 0:06:14]} exd5 {[%emt 0:00:01]} 26. Nxa5 {[%emt 0:08:20]} Rxc3 {[%emt 0:16:52]} 27. Qxd5 {[%emt 0:01:11]} Rxf2 {[%emt 0:03:42]} 28. Nc6 {[%emt 0:04:21]} Qb6 {[%emt 0:05:14]} 29. Ra8+ {[%emt 0:04:29]} Rf8+ {[%emt 0:00:05]} 30. Nd4 {[%emt 0:00:18]} 1-0

[Event "HUN-ch U8-U18 2019"]
[Site "Balatonlelle"]
[Date "2019.06.24"]
[Round "4.11"]
[White "Daroczi, Donat"]
[Black "Gyenes, Mate"]
[Result "1/2-1/2"]
[ECO "C11"]
[WhiteElo "2050"]
[BlackElo "1823"]
[Annotator "NA"]
[PlyCount "84"]
[EventDate "2019.06.21"]
[EventType "swiss"]
[EventCountry "HUN"]
[SourceTitle "playchess.com"]
[Source "ChessBase"]
[SourceQuality "1"]
[TimeControl "40/5400+30:1800+30"]

1. e4 {[%emt 0:00:02]} e6 {[%emt 0:00:03]} 2. d4 {[%emt 0:00:03]} d5 {[%emt 0:00:01]} 3. Nc3 {[%emt 0:00:09]} Nf6 {[%emt 0:00:04]} 4. e5 {[%emt 0:00:06]} Nfd7 {[%emt 0:00:04]} 5. f4 {[%emt 0:00:06]} c5 {[%emt 0:00:04]} 6. Nf3 {[%emt 0:00:13]} Nc6 {[%emt 0:00:06]} 7. Be3 {[%emt 0:00:39]} cxd4 {[%emt 0:00:10]} 8. Nxd4 {[%emt 0:02:08]} Bc5 {[%emt 0:00:06]} 9. Qd2 {[%emt 0:03:08]} Bxd4 {[%emt 0:00:19]} 10. Bxd4 {[%emt 0:00:07]} Nxd4 {[%emt 0:00:05]} 11. Qxd4 {[%emt 0:00:07]} Qb6 {[%emt 0:00:03]} 12. O-O-O {[%emt 0:02:07]} Qxd4 {[%emt 0:01:18]} 13. Rxd4 {[%emt 0:00:03]} Nb8 {[%emt 0:00:17]} 14. Rd2 {[%emt 0:05:41]} Nc6 {[%emt 0:00:37]} 15. Bd3 {[%emt 0:03:18]} Ke7 {[%emt 0:00:47]} 16. Re1 {[%emt 0:01:48]} Bd7 {[%emt 0:00:19]} 17. f5 {[%emt 0:02:04]} a6 {[%emt 0:07:39]} 18. Rf2 {[%emt 0:03:48]} h5 {[%emt 0:04:41]} 19. Na4 {[%emt 0:13:16]} Nb4 {[%emt 0:10:52]} 20. Nb6 {[%emt 0:05:42]} Nxd3+ {[%emt 0:01:38]} 21. cxd3 {[%emt 0:00:01]} Raf8 {[%emt 0:04:14]} 22. Ref1 {[%emt 0:09:27]} Bc6 23. Kd2 {[%emt 0:00:10]} exf5 {[%emt 0:05:57]} 24. Rxf5 {[%emt 0:01:47]} Rh6 {[%emt 0:03:45]} 25. a4 Rg6 26. g3 {[%emt 0:08:33]} h4 {[%emt 0:01:27]} 27. gxh4 Rg4 {[%emt 0:02:00]} 28. R5f4 {[%emt 0:08:25]} Rg2+ {[%emt 0:02:34]} 29. R1f2 {[%emt 0:00:36]} Rxf2+ {[%emt 0:00:08]} 30. Rxf2 {[%emt 0:00:01]} Rh8 {[%emt 0:00:11]} 31. Rf4 {[%emt 0:00:13]} Rh5 {[%emt 0:00:13]} 32. d4 {[%emt 0:00:09]} a5 {[%emt 0:00:12]} 33. Nc8+ {[%emt 0:01:12]} Ke6 {[%emt 0:00:16]} 34. Nd6 {[%emt 0:00:10]} f6 {[%emt 0:00:48]} 35. exf6 {[%emt 0:00:59]} gxf6 {[%emt 0:00:27]} 36. Nb5 {[%emt 0:00:11]} Bxb5 {[%emt 0:00:34]} 37. axb5 {[%emt 0:00:01]} b6 {[%emt 0:00:45]} 38. Rg4 {[%emt 0:22:58]} Rh7 {[%emt 0:03:02]} 39. h3 {[%emt 0:01:38]} Re7 {[%emt 0:03:14]} 40. Rg3 {[%emt 0:00:00]} Rh7 {[%emt 0:00:00]} 41. Re3+ {[%emt 0:17:30]} Kf7 {[%emt 0:04:16]} 42. Kd3 {[%emt 0:03:14]} Rxh4 {Ke4} 1/2-1/2

[Event "HUN-ch U8-U18 2019"]
[Site "Balatonlelle"]
[Date "2019.06.24"]
[Round "4.12"]
[White "Kovacsy, Barnabas"]
[Black "Demjen, Mark"]
[Result "1/2-1/2"]
[ECO "B19"]
[WhiteElo "2136"]
[BlackElo "1944"]
[Annotator "NA"]
[PlyCount "67"]
[EventDate "2019.06.21"]
[EventType "swiss"]
[EventCountry "HUN"]
[SourceTitle "playchess.com"]
[Source "ChessBase"]
[SourceQuality "1"]
[TimeControl "40/5400+30:1800+30"]

1. e4 {[%emt 0:00:01]} c6 {[%emt 0:00:06]} 2. d4 {[%emt 0:00:05]} d5 {[%emt 0:00:06]} 3. Nc3 {[%emt 0:00:09]} dxe4 {[%emt 0:00:05]} 4. Nxe4 {[%emt 0:00:03]} Bf5 {[%emt 0:00:06]} 5. Ng3 {[%emt 0:00:18]} Bg6 {[%emt 0:00:06]} 6. h4 {[%emt 0:00:07]} h6 {[%emt 0:00:05]} 7. Nf3 {[%emt 0:00:05]} Nd7 {[%emt 0:00:04]} 8. h5 {[%emt 0:00:06]} Bh7 {[%emt 0:00:03]} 9. Bd3 {[%emt 0:00:04]} Bxd3 {[%emt 0:00:03]} 10. Qxd3 {[%emt 0:00:06]} Ngf6 {[%emt 0:00:08]} 11. Bd2 {[%emt 0:00:12]} e6 {[%emt 0:00:07]} 12. O-O-O {[%emt 0:00:06]} Be7 {[%emt 0:00:04]} 13. Kb1 {[%emt 0:00:08]} O-O {[%emt 0:00:15]} 14. Ne4 {[%emt 0:01:19]} Nxe4 {[%emt 0:00:05]} 15. Qxe4 {[%emt 0:00:24]} Nf6 {[%emt 0:00:05]} 16. Qe2 {[%emt 0:02:53]} Qd5 {[%emt 0:01:00]} 17. Ne5 {[%emt 0:02:52]} Qe4 {[%emt 0:02:15]} 18. Qxe4 {[%emt 0:00:40]} Nxe4 {[%emt 0:00:07]} 19. Be1 {[%emt 0:00:14]} Rfd8 {[%emt 0:01:18]} 20. f3 {[%emt 0:00:49]} Nf6 {[%emt 0:00:09]} 21. Bf2 {[%emt 0:00:40]} Bd6 {[%emt 0:03:30]} 22. Nd3 {[%emt 0:15:23]} b5 {[%emt 0:10:47]} 23. Bh4 {[%emt 0:07:00]} Be7 {[%emt 0:02:33]} 24. Bxf6 {[%emt 0:00:38]} Bxf6 {[%emt 0:00:09]} 25. c3 {[%emt 0:00:16]} a5 {[%emt 0:05:49]} 26. Kc2 {[%emt 0:01:38]} Rd5 {[%emt 0:01:00]} 27. g4 {[%emt 0:02:24]} e5 {[%emt 0:10:29]} 28. dxe5 {[%emt 0:01:10]} Bxe5 {[%emt 0:00:07]} 29. Nf2 {[%emt 0:01:37]} Rad8 {[%emt 0:11:15]} 30. Rxd5 {[%emt 0:02:01]} cxd5 {[%emt 0:00:14]} 31. Nd3 {[%emt 0:04:59]} Bf6 {[%emt 0:01:16]} 32. Rd1 {[%emt 0:05:42]} d4 {[%emt 0:10:50]} 33. Nf4 {[%emt 0:27:14]} Rc8 {[%emt 0:04:43]} 34. Nd5 {[%emt 0:01:57]} 1/2-1/2

[Event "HUN-ch U8-U18 2019"]
[Site "Balatonlelle"]
[Date "2019.06.24"]
[Round "4.12"]
[White "Onodi, Tamas"]
[Black "Pervai, Laszlo"]
[Result "1-0"]
[ECO "A45"]
[WhiteElo "1684"]
[BlackElo "2033"]
[Annotator "NA"]
[PlyCount "107"]
[EventDate "2019.06.21"]
[EventType "swiss"]
[EventCountry "HUN"]
[SourceTitle "playchess.com"]
[Source "ChessBase"]
[SourceQuality "1"]
[TimeControl "40/5400+30:1800+30"]

1. d4 {[%emt 0:00:02]} Nf6 {[%emt 0:00:11]} 2. Bf4 {[%emt 0:00:10]} g6 {[%emt 0:00:07]} 3. e3 {[%emt 0:00:10]} Bg7 {[%emt 0:00:19]} 4. Nf3 {[%emt 0:00:09]} O-O {[%emt 0:00:22]} 5. Be2 {[%emt 0:00:10]} d6 {[%emt 0:00:35]} 6. h3 {[%emt 0:00:04]} Nbd7 {[%emt 0:00:28]} 7. O-O {[%emt 0:00:18]} Qe8 {[%emt 0:01:13]} 8. c3 {[%emt 0:03:24]} e5 {[%emt 0:01:08]} 9. Bh2 {[%emt 0:00:02]} Qe7 {[%emt 0:01:44]} 10. Nbd2 {[%emt 0:00:43]} b6 {[%emt 0:01:22]} 11. a4 {[%emt 0:00:20]} Bb7 {[%emt 0:03:04]} 12. a5 {[%emt 0:00:17]} Rfd8 {[%emt 0:00:43]} 13. Re1 {[%emt 0:07:24]} c5 {[%emt 0:01:15]} 14. Bb5 {[%emt 0:06:25]} e4 {[%emt 0:03:52]} 15. a6 {[%emt 0:01:26]} Bd5 {[%emt 0:00:55]} 16. c4 {[%emt 0:00:21]} exf3 {[%emt 0:01:33]} 17. cxd5 {[%emt 0:00:45]} fxg2 {[%emt 0:00:33]} 18. Kxg2 {[%emt 0:01:52]} Nxd5 {[%emt 0:01:36]} 19. Nf3 {[%emt 0:03:44]} Nb4 {[%emt 0:01:27]} 20. dxc5 {[%emt 0:07:34]} Nxc5 {[%emt 0:01:22]} 21. e4 {[%emt 0:05:34]} Nxe4 {[%emt 0:05:08]} 22. Kf1 {[%emt 0:08:08]} d5 {[%emt 0:00:54]} 23. Qa4 {[%emt 0:01:48]} Qc5 {[%emt 0:00:56]} 24. Re2 {[%emt 0:00:49]} f5 {[%emt 0:02:03]} 25. Bf4 {[%emt 0:00:22]} d4 {[%emt 0:01:45]} 26. Rc1 {[%emt 0:00:13]} Qf8 {[%emt 0:01:57]} 27. Bc7 {[%emt 0:01:43]} d3 {[%emt 0:01:51]} 28. Rxe4 {[%emt 0:06:27]} fxe4 {[%emt 0:01:46]} 29. Bc4+ {[%emt 0:00:44]} Kh8 {[%emt 0:01:29]} 30. Ng5 {[%emt 0:01:35]} Bd4 {[%emt 0:01:26]} 31. Nf7+ {[%emt 0:02:34]} Kg7 {[%emt 0:00:21]} 32. Bf4 {[%emt 0:02:12]} g5 {[%emt 0:06:56]} 33. Bxg5 {[%emt 0:00:55]} Kg6 {[%emt 0:00:22]} 34. Qd1 {[%emt 0:01:06]} h5 {[%emt 0:00:55]} 35. f4 {[%emt 0:01:30]} d2 {[%emt 0:15:25]} 36. Rb1 {[%emt 0:01:27]} Qc5 {[%emt 0:00:50]} 37. Be6 {[%emt 0:02:44]} Qc2 {[%emt 0:04:30]} 38. f5+ {[%emt 0:03:32]} Kg7 {[%emt 0:00:20]} 39. Qxc2 {[%emt 0:02:37]} Nxc2 {[%emt 0:00:06]} 40. Nxd8 {[%emt 0:00:00]} Ne3+ {[%emt 0:00:00]} 41. Bxe3 {[%emt 0:01:15]} Bxe3 {[%emt 0:02:25]} 42. Nc6 {[%emt 0:00:23]} Kf6 {[%emt 0:02:08]} 43. Ke2 {[%emt 0:00:33]} Bg5 {[%emt 0:00:46]} 44. Rg1 {[%emt 0:03:14]} h4 {[%emt 0:05:09]} 45. Rg4 {[%emt 0:00:13]} Rh8 {[%emt 0:01:08]} 46. Rxe4 {[%emt 0:01:07]} Rh7 {[%emt 0:00:09]} 47. Nb4 {[%emt 0:02:54]} Rh8 {[%emt 0:02:28]} 48. Rd4 {[%emt 0:02:16]} Re8 {[%emt 0:02:22]} 49. Rd7 {[%emt 0:01:11]} Ke5 {[%emt 0:00:06]} 50. Nc6+ {[%emt 0:00:19]} Kf4 {[%emt 0:00:37]} 51. Rd4+ {[%emt 0:00:25]} Kg3 {[%emt 0:00:51]} 52. Rg4+ {[%emt 0:00:02]} Kxh3 {[%emt 0:00:09]} 53. Rxg5 {[%emt 0:00:24]} Kh2 {[%emt 0:00:27]} 54. Rg8 {[%emt 0:00:46]} 1-0